bitfinex-derivatives/quotes_SOLF0:USTF0_20241227
["timestamp","ask_amount","ask_price","bid_price","bid_amount"]
[1735322279528,1.573,186.38,186.29,1.6607]
[1735322279726,9.54961882,186.38,186.31,7.97661882]
[1735322280129,2.6872,186.33,186.31,7.97661882]
[1735322281034,2.6872,186.32,186.31,7.97661882]
[1735322283628,1.5841,186.42,186.31,7.97661882]
[1735322283833,1.5882,186.44,186.36,7.97661882]
[1735322284028,1.5882,186.44,186.38,7.97661882]
[1735322284440,9.53611882,186.45,186.38,7.97661882]
[1735322284637,2.6858,186.43,186.38,7.97661882]
[1735322284833,1.5595,186.45,186.38,7.97661882]
[1735322285229,9.53611882,186.45,186.38,7.97661882]
[1735322285734,1.5595,186.45,186.38,7.97661882]
[1735322285939,1.5595,186.45,186.4,7.97661882]
[1735322287734,7.97661882,186.43,186.37,3.2]
[1735322287932,7.97661882,186.41,186.37,3.2]
[1735322288440,1.5595,186.45,186.37,3.2]
[1735322288441,7.97661882,186.39,186.37,3.2]
[1735322288744,2.6865,186.38,186.37,3.2]
[1735322291341,4.7595,186.45,186.33,3.2]
[1735322291543,12.46287654,186.38,186.33,3.2]
[1735322291838,2.687,186.34,186.33,3.2]
[1735322292042,12.46287654,186.41,186.33,3.2]
[1735322292434,2.687,186.34,186.33,3.2]
[1735322302444,12.46287654,186.44,186.33,3.2]
[1735322302646,12.46287654,186.44,186.33,7.30721559]
[1735322303149,2.6867,186.36,186.33,7.30721559]
[1735322303350,12.46287654,186.44,186.33,7.30721559]
[1735322303550,1.5595,186.45,186.33,7.30721559]
[1735322304051,2.6858,186.42,186.33,7.30721559]
[1735322304352,1.5595,186.45,186.35,12.46287654]
[1735322304853,2.6862,186.39,186.35,12.46287654]
[1735322305253,1.5595,186.45,186.35,12.46287654]
[1735322305454,1.5595,186.45,186.36,5.75178147]
[1735322305851,12.46287654,186.47,186.36,5.75178147]
[1735322307047,2.6861,186.4,186.36,5.75178147]
[1735322307750,2.6861,186.4,186.36,1.6464]
[1735322307955,2.6861,186.4,186.36,5.75373302]
[1735322309052,2.6861,186.4,186.36,1.6464]
[1735322309956,14.02757654,186.49,186.36,5.75639918]
[1735322310459,1.5647,186.49,186.36,5.75639918]
[1735322310750,14.02757654,186.49,186.37,12.46287654]
[1735322310956,14.02757654,186.49,186.38,3.22]
[1735322311657,2.6859,186.41,186.39,7.96959966]
[1735322312160,2.6859,186.41,186.38,3.22]
[1735322312356,2.6859,186.41,186.39,7.96959966]
[1735322312757,7.96959966,186.46,186.38,3.22]
[1735322313059,2.6862,186.39,186.38,3.22]
[1735322313258,2.6862,186.39,186.38,11.18959966]
[1735322313556,2.6862,186.39,186.38,7.96959966]
[1735322313756,2.6862,186.39,186.38,11.18959966]
[1735322314353,2.6863,186.39,186.38,11.18959966]
[1735322317060,2.6863,186.39,186.38,15.3108291]
[1735322318859,1.5647,186.49,186.38,15.3108291]
[1735322319160,7.96959966,186.48,186.41,7.96959966]
[1735322319763,7.96959966,186.46,186.39,7.96959966]
[1735322321460,2.6859,186.41,186.39,7.96959966]
[1735322321661,7.96959966,186.46,186.39,7.96959966]
[1735322322067,2.6854,186.44,186.39,7.96959966]
[1735322322269,7.96959966,186.46,186.39,7.96959966]
[1735322322568,2.6859,186.41,186.39,7.96959966]
[1735322323869,2.6859,186.41,186.4,3.24]
[1735322326073,7.96959966,186.42,186.36,7.96959966]
[1735322326261,7.96959966,186.42,186.37,3.24]
[1735322326868,2.6863,186.38,186.37,3.24]
[1735322327270,7.96959966,186.42,186.37,3.24]
[1735322327475,2.6863,186.38,186.37,3.24]
[1735322329071,2.6867,186.35,186.34,7.96959966]
[1735322329269,2.6867,186.35,186.34,15.33127415]
[1735322329471,2.6867,186.35,186.34,15.33144383]
[1735322330475,2.6867,186.35,186.34,4.12184417]
[1735322330674,2.6867,186.35,186.34,7.36184417]
[1735322331170,2.6867,186.35,186.34,7.36231451]
[1735322331475,2.6867,186.35,186.34,3.24]
[1735322331878,2.687,186.33,186.31,7.96959966]
[1735322332174,2.687,186.33,186.32,63.20307179]
[1735322332967,2.6859,186.41,186.32,63.20307179]
[1735322333170,7.96959966,186.39,186.33,12.09267145]
[1735322333367,7.96959966,186.39,186.33,7.96959966]
[1735322333577,2.6864,186.38,186.33,7.96959966]
[1735322333876,7.96959966,186.39,186.33,7.96959966]
[1735322333877,7.96959966,186.39,186.34,4.12157]
[1735322334070,7.96959966,186.39,186.33,7.96959966]
[1735322334270,2.6868,186.35,186.33,7.96959966]
[1735322334669,7.96959966,186.35,186.25,7.31172532]
[1735322334877,2.6872,186.32,186.29,7.96959966]
[1735322335072,1.5672,186.38,186.31,7.96959966]
[1735322335275,2.6863,186.38,186.35,7.96959966]
[1735322335468,2.6863,186.38,186.36,4.12228289]
[1735322335773,2.6863,186.38,186.35,7.96959966]
[1735322335774,2.6863,186.38,186.37,7.35940908]
[1735322336074,2.6861,186.39,186.37,15.32900874]
[1735322336275,2.6861,186.39,186.38,4.11924934]
[1735322336974,7.96959966,186.4,186.31,3.24]
[1735322337172,7.96959966,186.38,186.32,4.11968191]
[1735322337373,7.96959966,186.38,186.31,3.24]
[1735322338075,2.6871,186.33,186.31,3.24]
[1735322339373,2.6871,186.33,186.32,7.96959966]
[1735322340976,2.6867,186.35,186.32,3.24]
[1735322341177,7.96959966,186.36,186.32,3.24]
[1735322341879,7.96959966,186.38,186.32,3.24]
[1735322342282,7.96959966,186.36,186.32,3.24]
[1735322343681,2.687,186.33,186.32,3.24]
[1735322345883,7.96959966,186.4,186.32,3.24]
[1735322346584,2.6866,186.36,186.33,7.96959966]
[1735322346884,7.96959966,186.4,186.33,7.96959966]
[1735322347284,2.6869,186.34,186.32,3.24]
[1735322349889,2.687,186.33,186.32,7.28803991]
[1735322350088,2.687,186.33,186.32,3.24]
[1735322350787,2.687,186.33,186.32,7.28803991]
[1735322352488,2.6869,186.34,186.32,7.28551641]
[1735322352786,2.6869,186.34,186.33,4.04551641]
[1735322354695,2.687,186.33,186.32,7.28571993]
[1735322354891,7.96959966,186.35,186.3,4.04571993]
[1735322355193,2.687,186.33,186.31,4.04571993]
[1735322355498,7.96959966,186.35,186.31,3.24]
[1735322355890,2.6868,186.34,186.32,4.04561978]
[1735322356091,8.6109,186.44,186.32,4.04561978]
[1735322356496,5.3709,186.44,186.33,4.04502535]
[1735322356698,7.96959966,186.37,186.31,11.20959966]
[1735322356994,7.96959966,186.37,186.32,4.04516826]
[1735322357292,0.4443,186.45,186.33,12.01476792]
[1735322357496,7.96959966,186.41,186.34,4.04516826]
[1735322357692,2.6861,186.4,186.35,4.0429124]
[1735322357893,7.96959966,186.41,186.36,3.24]
[1735322358291,2.6864,186.37,186.36,3.24]
[1735322363194,7.96959966,186.37,186.34,3.24]
[1735322364294,2.6867,186.35,186.34,3.24]
[1735322364491,2.6867,186.35,186.34,7.28595839]
[1735322364891,2.6867,186.35,186.34,7.28701206]
[1735322366593,2.6867,186.35,186.34,7.29058807]
[1735322367801,2.6867,186.35,186.34,15.26018773]
[1735322368504,2.6866,186.36,186.34,15.26018773]
[1735322368703,2.6866,186.36,186.35,12.02018773]
[1735322369099,1.6253,186.46,186.35,12.02018773]
[1735322369307,7.96959966,186.43,186.37,7.96959966]
[1735322369600,1.6253,186.46,186.38,4.05058807]
[1735322369805,2.6858,186.42,186.39,7.29058807]
[1735322370007,7.96959966,186.43,186.39,3.24]
[1735322371405,2.686,186.4,186.39,3.24]
[1735322371609,2.686,186.4,186.39,7.29106761]
[1735322373005,2.686,186.4,186.39,3.24]
[1735322376913,2.687,186.33,186.32,7.96959966]
[1735322377111,2.687,186.33,186.32,15.26407079]
[1735322377312,2.687,186.33,186.32,7.29447113]
[1735322379211,2.687,186.33,186.32,15.26407079]
[1735322379421,2.687,186.33,186.32,7.29447113]
[1735322379619,7.96959966,186.34,186.31,7.29447113]
[1735322379815,2.6871,186.32,186.31,3.24]
[1735322380020,7.96959966,186.34,186.29,3.24]
[1735322380217,7.96959966,186.34,186.3,4.05569719]
[1735322380418,7.96959966,186.34,186.29,3.24]
[1735322380419,2.6874,186.3,186.29,3.24]
[1735322380618,2.6874,186.3,186.29,7.29497196]
[1735322381519,2.6874,186.3,186.29,3.24]
[1735322382522,2.6874,186.3,186.27,7.96959966]
[1735322382523,7.96959966,186.3,186.2,29.2469013]
[1735322382818,7.96959966,186.28,186.22,7.96959966]
[1735322383020,2.6884,186.23,186.22,7.96959966]
[1735322383718,7.96959966,186.31,186.22,7.96959966]
[1735322383925,7.96959966,186.31,186.24,7.96959966]
[1735322385422,2.6881,186.25,186.24,7.96959966]
[1735322386121,7.96959966,186.29,186.21,3.24]
[1735322386322,7.96959966,186.29,186.22,7.96959966]
[1735322387025,3.24,186.36,186.2,9.55819966]
[1735322387026,7.96959966,186.27,186.2,9.55819966]
[1735322387219,7.96959966,186.27,186.21,3.3]
[1735322387626,2.6887,186.21,186.2,9.55819966]
[1735322387825,2.6887,186.21,186.2,12.85819966]
[1735322389627,2.6887,186.21,186.2,11.26959966]
[1735322390229,2.6887,186.21,186.2,7.96959966]
[1735322390426,7.96959966,186.21,186.13,7.31172532]
[1735322390728,7.96959966,186.19,186.14,3.3]
[1735322391128,2.6895,186.16,186.14,11.26959966]
[1735322391929,7.96959966,186.21,186.14,11.26959966]
[1735322392130,2.6896,186.15,186.14,11.26959966]
[1735322392326,7.96959966,186.21,186.12,55.84]
[1735322392533,7.96959966,186.19,186.13,3.3]
[1735322392728,4.6993,186.26,186.13,11.26959966]
[1735322392934,7.96959966,186.2,186.13,11.26959966]
[1735322393133,2.6897,186.14,186.13,11.26959966]
[1735322395433,2.6897,186.14,186.13,3.3]
[1735322400934,2.6903,186.1,186.09,1.5338]
[1735322401340,7.96959966,186.1,186.04,11.26959966]
[1735322401535,3.3,186.18,186.08,7.96959966]
[1735322401736,7.96959966,186.15,186.08,7.96959966]
[1735322401941,7.96959966,186.17,186.1,7.96959966]
[1735322402146,7.96959966,186.17,186.11,3.3]
[1735322402849,2.69,186.12,186.11,3.3]
[1735322403251,7.96959966,186.15,186.09,3.3]
[1735322403451,7.96959966,186.11,186.04,7.96959966]
[1735322403752,7.96959966,186.11,186.05,3.3]
[1735322403950,2.6908,186.07,186.05,3.3]
[1735322404146,7.96959966,186.13,186.06,7.96959966]
[1735322404350,2.69,186.13,186.08,10.66019966]
[1735322404543,7.96959966,186.17,186.1,7.96959966]
[1735322404752,7.96959966,186.15,186.11,3.3]
[1735322405553,2.6901,186.12,186.11,3.3]
[1735322406150,7.96959966,186.13,186.09,3.3]
[1735322406349,7.96959966,186.15,186.09,3.3]
[1735322406549,7.96959966,186.15,186.09,11.26959966]
[1735322407961,2.6898,186.14,186.09,11.26959966]
[1735322408153,2.6898,186.14,186.11,7.96959966]
[1735322408356,7.96959966,186.17,186.11,7.96959966]
[1735322408556,2.6903,186.1,186.09,3.3]
[1735322408859,7.96959966,186.13,186.09,3.3]
[1735322409059,2.6903,186.1,186.09,3.3]
[1735322409356,7.96959966,186.11,186.07,3.3]
[1735322409760,2.6906,186.08,186.07,3.3]
[1735322414557,2.6904,186.1,186.07,11.26959966]
[1735322414863,1.6665,186.2,186.07,11.26959966]
[1735322414864,7.96959966,186.15,186.07,11.26959966]
[1735322415856,2.6899,186.13,186.09,7.96959966]
[1735322416062,7.96959966,186.17,186.09,7.96959966]
[1735322416660,2.6902,186.12,186.09,7.96959966]
[1735322417057,2.6902,186.11,186.09,7.96959966]
[1735322417558,2.6893,186.17,186.09,7.96959966]
[1735322417758,7.96959966,186.17,186.09,7.96959966]
[1735322418465,2.6896,186.15,186.09,7.96959966]
[1735322418661,7.96959966,186.17,186.09,7.96959966]
[1735322419361,7.96959966,186.13,186.07,4.9663]
[1735322419562,2.6903,186.11,186.08,7.96959966]
[1735322419759,7.96959966,186.17,186.1,7.96959966]
[1735322420367,2.6899,186.14,186.1,7.96959966]
[1735322421169,2.6899,186.13,186.1,7.96959966]
[1735322421869,2.69,186.12,186.1,7.96959966]
[1735322422071,7.96959966,186.17,186.09,7.96959966]
[1735322422573,7.96959966,186.15,186.09,7.96959966]
[1735322423074,2.6902,186.1,186.07,14.46279966]
[1735322423373,7.96959966,186.11,186.07,3.3]
[1735322423869,2.6903,186.08,186.07,3.3]
[1735322424265,2.6902,186.09,186.07,11.26959966]
[1735322424669,7.96959966,186.13,186.07,11.26959966]
[1735322424869,2.6903,186.08,186.07,3.3]
[1735322427975,2.6909,186.04,186.03,7.31172532]
[1735322428172,2.6909,186.04,186.03,21.93517598]
[1735322428374,2.6909,186.04,186.03,25.23517598]
[1735322429076,2.6907,186.06,186.03,25.23517598]
[1735322429270,2.6907,186.06,186.03,3.3]
[1735322429775,7.96959966,186.1,186.03,3.3]
[1735322430166,1.5199,186.12,186.03,3.3]
[1735322430370,7.96959966,186.1,186.03,3.3]
[1735322430976,2.6907,186.06,186.03,3.3]
[1735322431276,7.96959966,186.1,186.03,3.3]
[1735322431475,2.6909,186.05,186.03,3.3]
[1735322431776,7.96959966,186.1,186.03,3.3]
[1735322432276,2.6908,186.05,186.03,3.3]
[1735322433773,2.6903,186.08,186.03,3.3]
[1735322433973,7.96959966,186.1,186.03,3.3]
[1735322434381,2.6907,186.06,186.03,3.3]
[1735322434780,7.96959966,186.1,186.03,3.3]
[1735322435175,2.6909,186.04,186.03,3.3]
[1735322435375,7.96959966,186.1,186.03,3.3]
[1735322435872,2.6909,186.04,186.03,3.3]
[1735322437084,2.6911,186.03,186.01,7.96959966]
[1735322437278,2.6911,186.03,186.02,3.3]
[1735322438084,2.6914,186.01,185.99,7.96959966]
[1735322438386,2.6914,186.01,186.0,3.3]
[1735322438683,7.96959966,186.04,186.0,3.3]
[1735322439584,2.6913,186.01,186.0,3.3]
[1735322440080,2.6912,186.03,186.0,11.26959966]
[1735322440281,2.6912,186.03,186.02,7.96959966]
[1735322440685,7.96959966,186.11,186.02,7.96959966]
[1735322440882,1.5199,186.12,186.07,7.96959966]
[1735322441393,7.96959966,186.15,186.09,7.96959966]
[1735322442590,2.6899,186.11,186.09,7.96959966]
[1735322443281,2.6902,186.1,186.06,3.3]
[1735322443480,2.6902,186.1,186.08,7.96959966]
[1735322445287,2.6899,186.11,186.08,7.96959966]
[1735322445478,2.6899,186.11,186.1,7.96959966]
[1735322446383,2.69,186.1,186.07,7.96959966]
[1735322446584,7.96959966,186.13,186.07,7.96959966]
[1735322447288,2.6903,186.09,186.07,7.96959966]
[1735322448586,2.69,186.11,186.07,7.96959966]
[1735322448787,2.69,186.11,186.09,7.96959966]
[1735322448989,7.96959966,186.14,186.09,7.96959966]
[1735322449185,2.6901,186.1,186.09,7.96959966]
[1735322449591,7.96959966,186.14,186.07,7.96959966]
[1735322449792,7.96959966,186.14,186.06,3.3]
[1735322449994,7.96959966,186.12,186.06,11.26959966]
[1735322450186,2.6904,186.09,186.06,11.26959966]
[1735322451987,7.96959966,186.14,186.06,11.26959966]
[1735322452191,2.6906,186.08,186.06,11.26959966]
[1735322453692,2.6906,186.08,186.07,3.28]
[1735322455891,7.96959966,186.14,186.07,3.28]
[1735322456097,7.96959966,186.16,186.08,7.96959966]
[1735322456292,4.7777,186.2,186.1,7.96959966]
[1735322456493,2.6894,186.16,186.14,7.96959966]
[1735322456689,2.6894,186.16,186.14,11.24959966]
[1735322457395,2.6895,186.15,186.14,3.28]
[1735322458092,2.6891,186.18,186.14,3.28]
[1735322458295,7.96959966,186.19,186.14,3.28]
[1735322458496,1.6832,186.2,186.14,11.24959966]
[1735322458701,2.6892,186.17,186.14,11.24959966]
[1735322459593,7.96959966,186.24,186.16,7.96959966]
[1735322460001,2.689,186.18,186.16,7.96959966]
[1735322460397,7.96959966,186.22,186.14,11.24959966]
[1735322461200,2.6892,186.17,186.14,11.24959966]
[1735322462608,2.6892,186.17,186.14,3.28]
[1735322462903,2.6892,186.17,186.14,11.24959966]
[1735322464505,2.6893,186.16,186.14,11.24959966]
[1735322464806,7.96959966,186.22,186.14,11.24959966]
[1735322465302,2.6893,186.17,186.14,11.24959966]
[1735322466796,2.6889,186.2,186.14,11.24959966]
[1735322467002,3.201,186.25,186.14,11.24959966]
[1735322467003,1.6572,186.25,186.19,7.96959966]
[1735322467198,7.96959966,186.27,186.2,3.26]
[1735322467603,3.1116,186.34,186.21,7.96959966]
[1735322467904,7.96959966,186.31,186.23,7.96959966]
[1735322468308,2.6876,186.28,186.23,10.65789966]
[1735322470806,1.5871,186.34,186.27,7.96959966]
[1735322471005,7.96959966,186.35,186.28,3.26]
[1735322471212,7.96959966,186.37,186.29,7.96959966]
[1735322471510,7.96959966,186.37,186.31,7.96959966]
[1735322471705,2.6867,186.34,186.31,7.96959966]
[1735322471906,2.6867,186.34,186.29,7.96959966]
[1735322472811,4.7629,186.42,186.29,7.96959966]
[1735322473012,2.6865,186.36,186.3,2.6872]
[1735322474328,2.6865,186.36,186.31,10.65669966]
[1735322474512,2.6862,186.38,186.33,7.96959966]
[1735322474815,2.6862,186.38,186.34,3.26]
[1735322475212,2.686,186.4,186.35,7.96959966]
[1735322475617,1.5743,186.42,186.35,7.96959966]
[1735322475813,9.54389966,186.42,186.35,7.96959966]
[1735322476212,7.96959966,186.4,186.34,3.26]
[1735322477212,2.6863,186.37,186.34,3.26]
[1735322479113,7.96959966,186.4,186.34,11.22959966]
[1735322480519,2.6862,186.38,186.34,11.22959966]
[1735322480715,7.96959966,186.4,186.34,11.22959966]
[1735322480916,9.54389966,186.42,186.36,7.96959966]
[1735322481117,7.96959966,186.44,186.36,7.96959966]
[1735322482118,2.6856,186.42,186.36,7.96959966]
[1735322482618,7.96959966,186.44,186.36,7.96959966]
[1735322483414,2.6857,186.41,186.36,7.96959966]
[1735322484117,2.6857,186.41,186.34,3.26]
[1735322484320,2.6858,186.42,186.34,3.26]
[1735322484515,2.6858,186.42,186.37,7.96959966]
[1735322485318,2.6859,186.41,186.37,7.96959966]
[1735322487526,2.686,186.4,186.34,3.26]
[1735322487721,7.96959966,186.42,186.3,3.2823]
[1735322487922,7.96959966,186.38,186.32,7.96959966]
[1735322488222,2.6869,186.33,186.3,9.64509966]
[1735322488428,1.6308,186.46,186.31,3.34]
[1735322488628,7.96959966,186.36,186.31,3.34]
[1735322489219,7.96959966,186.42,186.34,7.96959966]
[1735322489424,7.96959966,186.42,186.36,7.96959966]
[1735322489726,7.96959966,186.42,186.37,3.34]
[1735322489929,2.6859,186.4,186.37,3.34]
[1735322490426,2.6864,186.37,186.34,7.96959966]
[1735322490629,7.96959966,186.38,186.33,3.34]
[1735322491330,2.6868,186.34,186.33,3.34]
[1735322492723,7.96959966,186.34,186.32,3.34]
[1735322493028,7.96959966,186.34,186.3,3.34]
[1735322493235,2.6872,186.31,186.3,3.34]
[1735322496422,7.96959966,186.32,186.25,63.82959966]
[1735322496732,2.6877,186.28,186.26,3.34]
[1735322497133,2.6875,186.29,186.26,3.34]
[1735322497326,44.53458638,186.45,186.27,7.96959966]
[1735322497527,7.96959966,186.35,186.27,7.96959966]
[1735322498431,2.6873,186.31,186.29,7.96959966]
[1735322499226,2.6873,186.31,186.27,7.96959966]
[1735322499633,2.6871,186.33,186.27,7.96959966]
[1735322499929,7.96959966,186.38,186.31,7.96959966]
[1735322500133,7.96959966,186.4,186.33,7.96959966]
[1735322500333,7.96959966,186.4,186.34,3.34]
[1735322500533,44.53458638,186.45,186.34,3.34]
[1735322500534,7.96959966,186.36,186.34,3.34]
[1735322501034,2.6867,186.35,186.34,3.34]
[1735322502530,7.96959966,186.41,186.34,11.30959966]
[1735322504439,2.6861,186.39,186.34,11.30959966]
[1735322505036,2.6861,186.39,186.34,3.34]
[1735322505336,2.6861,186.39,186.34,11.30959966]
[1735322506037,2.6863,186.38,186.34,11.30959966]
[1735322506435,7.96959966,186.39,186.34,3.34]
[1735322507038,7.96959966,186.43,186.36,7.96959966]
[1735322507840,2.686,186.4,186.36,7.96959966]
[1735322508339,2.6865,186.36,186.35,1.5554]
[1735322508539,7.96959966,186.41,186.35,3.48]
[1735322509134,2.6865,186.36,186.35,3.48]
[1735322509835,7.96959966,186.37,186.33,10.1]
[1735322510035,2.6868,186.34,186.33,13.58]
[1735322510536,2.6868,186.34,186.33,10.1]
[1735322516156,7.96959966,186.35,186.27,3.48]
[1735322516157,2.6877,186.28,186.27,3.48]
[1735322516357,7.96959966,186.31,186.27,3.48]
[1735322516558,7.96959966,186.29,186.27,3.48]
[1735322516956,2.6877,186.28,186.27,3.48]
[1735322519463,2.688,186.26,186.23,7.96959966]
[1735322519663,2.688,186.26,186.24,3.48]
[1735322520261,7.96959966,186.29,186.22,1.6059]
[1735322520455,7.96959966,186.27,186.22,1.6059]
[1735322520659,7.96959966,186.27,186.23,3.48]
[1735322520864,2.6883,186.24,186.23,3.48]
[1735322521766,2.6887,186.21,186.2,1.6597]
[1735322521958,7.96959966,186.25,186.17,11.10689966]
[1735322522164,7.96959966,186.23,186.2,3.48]
[1735322522362,2.6887,186.21,186.2,3.48]
[1735322522560,7.96959966,186.27,186.2,3.48]
[1735322523064,2.6886,186.22,186.2,3.48]
[1735322523367,3.48,186.36,186.2,3.48]
[1735322523368,7.96959966,186.23,186.2,3.48]
[1735322523566,2.6893,186.17,186.16,2.89126842]
[1735322523864,2.6893,186.17,186.16,6.37126842]
[1735322524265,2.6893,186.17,186.16,3.48]
[1735322524961,2.6896,186.15,186.12,30.82586829]
[1735322525167,2.6896,186.15,186.12,1.5711]
[1735322525368,2.6896,186.15,186.13,3.48]
[1735322525667,2.6896,186.15,186.14,3.48]
[1735322527861,12.48433375,186.2,186.1,1.5217]
[1735322528061,12.48433375,186.2,186.11,3.48]
[1735322528861,2.6899,186.13,186.11,3.48]
[1735322529067,2.6899,186.13,186.12,3.48]
[1735322529459,12.48433375,186.2,186.1,1.5217]
[1735322529658,2.6902,186.11,186.1,1.5217]
[1735322529866,2.6902,186.11,186.1,5.0017]
[1735322530062,1.5814,186.19,186.1,5.0017]
[1735322530964,12.48433375,186.17,186.1,3.48]
[1735322532466,2.6902,186.11,186.1,3.48]
[1735322534674,12.48433375,186.14,186.08,3.48]
[1735322535373,2.6901,186.12,186.08,3.48]
[1735322535764,2.6899,186.13,186.08,3.48]
[1735322535968,12.48433375,186.17,186.08,3.48]
[1735322536472,12.48433375,186.14,186.08,3.48]
[1735322537174,2.6904,186.1,186.08,3.48]
[1735322539163,12.48433375,186.14,186.08,3.48]
[1735322540170,2.6905,186.09,186.08,3.48]
[1735322541175,2.6906,186.08,186.05,1.658]
[1735322541373,12.48433375,186.14,186.08,3.46]
[1735322542369,12.48433375,186.11,186.07,3.46]
[1735322542569,12.48433375,186.11,186.05,3.46]
[1735322542769,2.6907,186.06,186.05,3.46]
[1735322544680,2.6904,186.08,186.05,3.46]
[1735322545274,12.48433375,186.14,186.05,3.46]
[1735322545774,7.99725445,186.11,186.05,3.46]
[1735322546581,2.6903,186.09,186.05,3.46]
[1735322546781,7.99725445,186.09,186.05,3.46]
[1735322546983,7.99725445,186.07,186.05,3.46]
[1735322547172,7.99725445,186.07,185.99,9.55245445]
[1735322547479,7.99725445,186.05,186.02,3.46]
[1735322548279,7.99725445,186.03,185.96,29.25476829]
[1735322548483,7.99725445,186.01,185.97,3.46]
[1735322548783,2.6918,185.98,185.97,3.46]
[1735322549584,2.6916,186.0,185.97,3.46]
[1735322549783,7.99725445,186.02,185.96,7.99725445]
[1735322549985,12.50742179,186.05,185.98,3.46]
[1735322550884,12.50742179,186.02,185.93,3.3157]
[1735322551179,12.50742179,186.02,185.94,3.46]
[1735322551479,12.50742179,185.99,185.89,85.17476829]
[1735322551779,12.50742179,185.99,185.92,3.46]
[1735322552287,2.6925,185.93,185.92,3.46]
[1735322552685,12.50742179,185.99,185.89,55.92]
[1735322552883,12.50742179,185.99,185.9,3.46]
[1735322553291,12.50742179,186.02,185.9,3.46]
[1735322553292,2.6928,185.91,185.9,3.46]
[1735322553884,12.50742179,185.96,185.89,55.92]
[1735322554089,2.6924,185.94,185.9,3.46]
[1735322554278,12.50742179,185.99,185.9,3.46]
[1735322554483,2.6926,185.93,185.9,3.46]
[1735322555086,2.6927,185.92,185.9,3.46]
[1735322555696,2.6928,185.91,185.9,3.46]
[1735322556189,2.6924,185.94,185.89,3.46]
[1735322556390,12.50742179,185.93,185.83,7.31959231]
[1735322556688,12.50742179,185.93,185.84,3.46]
[1735322557889,2.6933,185.88,185.84,3.46]
[1735322559088,12.50742179,185.93,185.84,6.1537]
[1735322559089,2.6931,185.9,185.84,6.1537]
[1735322560290,12.50742179,185.93,185.84,6.1537]
[1735322560291,2.6931,185.89,185.84,6.1537]
[1735322560591,12.50742179,185.93,185.84,3.46]
[1735322560790,2.6932,185.88,185.84,3.46]
[1735322561181,12.50742179,185.93,185.84,3.46]
[1735322561395,2.6934,185.87,185.84,3.46]
[1735322562590,12.50742179,185.93,185.84,3.46]
[1735322563194,2.6937,185.85,185.84,3.46]
[1735322563789,2.6934,185.87,185.84,3.46]
[1735322564188,12.50742179,185.93,185.84,3.46]
[1735322564892,2.6929,185.91,185.84,3.46]
[1735322565091,12.50742179,185.93,185.84,3.46]
[1735322565593,2.6932,185.89,185.84,3.46]
[1735322565790,12.50742179,185.93,185.84,3.46]
[1735322566593,12.50742179,185.93,185.81,3.3537]
[1735322566787,2.6938,185.84,185.82,3.42]
[1735322566992,12.50742179,185.9,185.81,1.6771]
[1735322567188,12.50742179,185.9,185.82,3.42]
[1735322567582,2.6939,185.83,185.82,3.42]
[1735322568081,12.50742179,185.9,185.82,3.42]
[1735322568082,2.6933,185.88,185.82,3.42]
[1735322568287,12.50742179,185.94,185.82,3.42]
[1735322568590,2.6936,185.86,185.82,3.42]
[1735322568793,12.50742179,185.91,185.82,3.42]
[1735322569190,2.6936,185.86,185.82,3.42]
[1735322569692,12.50742179,185.91,185.82,3.42]
[1735322570587,2.6939,185.83,185.82,3.42]
[1735322571290,12.50742179,185.88,185.76,55.94]
[1735322571493,1.5494,185.87,185.77,4.41016976]
[1735322571692,1.5494,185.87,185.78,3.42]
[1735322571893,2.6946,185.79,185.78,3.42]
[1735322572598,1.5494,185.87,185.78,3.42]
[1735322574096,2.6942,185.82,185.78,3.42]
[1735322574296,1.5494,185.87,185.78,3.42]
[1735322576499,2.6942,185.82,185.78,3.42]